bitfinex/quotes_SOLUSD_20260222
["timestamp","ask_amount","ask_price","bid_price","bid_amount"]
[1771770107841,1.10681721,83.765,83.737,11.94215221]
[1771770108142,1.10681721,83.765,83.733,53.74]
[1771770108441,1.10681721,83.765,83.734,11.94258007]
[1771770108743,1.10681721,83.765,83.733,65.68263189]
[1771770109749,11.93830285,83.764,83.733,65.68263189]
[1771770109937,1.10681721,83.763,83.733,53.74]
[1771770110935,1.10681721,83.761,83.725,11.94386383]
[1771770112647,1.10681721,83.761,83.725,12.61240914]
[1771770113258,1.10681721,83.759,83.726,0.66760254]
[1771770113955,1.10681721,83.766,83.728,0.66665558]
[1771770115347,0.2,83.79,83.742,0.6657302]
[1771770115348,1.10681721,83.787,83.742,0.6657302]
[1771770115846,1.10681721,83.787,83.744,0.66482289]
[1771770116239,1.10681721,83.783,83.743,53.74]
[1771770117662,1.10681721,83.781,83.743,53.74]
[1771770118266,1.10681721,83.779,83.743,53.74]
[1771770119261,1.10681721,83.777,83.743,53.74]
[1771770120565,1.10681721,83.777,83.742,11.94140455]
[1771770121060,1.10681721,83.777,83.743,0.66041526]
[1771770121238,1.10681721,83.777,83.745,0.66041526]
[1771770121842,1.10681721,83.782,83.747,0.65955691]
[1771770122364,1.30681721,83.79,83.756,5.36086188]
[1771770122565,1.30681721,83.79,83.757,0.65955691]
[1771770123254,0.2,83.79,83.759,0.65870454]
[1771770123571,11.9329577,83.802,83.758,41.78705317]
[1771770123572,1.10681721,83.802,83.767,0.45870454]
[1771770123860,1.10681721,83.808,83.767,0.45870454]
[1771770124572,1.10681721,83.808,83.777,0.45801461]
[1771770124860,1.10681721,83.824,83.785,5.36086188]
[1771770125051,1.10681721,83.824,83.786,0.45733287]
[1771770125246,1.10681721,83.824,83.788,0.45733287]
[1771770126047,1.10681721,83.824,83.794,0.45665717]
[1771770126845,1e-08,83.82,83.799,5.816848]
[1771770127055,1e-08,83.83,83.805,0.45598612]
[1771770127463,1e-08,83.83,83.807,0.45598612]
[1771770128563,1.11905772,83.83,83.807,0.45598612]
[1771770128769,1e-08,83.83,83.807,0.45598612]
[1771770129866,1e-08,83.83,83.808,11.93203512]
[1771770130068,1e-08,83.83,83.809,0.45335283]
[1771770130572,1.11905771,83.859,83.815,0.45335283]
[1771770130870,1.11905771,83.859,83.814,5.36086188]
[1771770130871,1.11905771,83.858,83.809,0.45271595]
[1771770131260,1.11905771,83.858,83.815,0.45271595]
[1771770131774,11.92349883,83.868,83.825,0.45207922]
[1771770132080,1.11905771,83.867,83.827,0.45207922]
[1771770134775,1.11905771,83.867,83.829,0.44766257]
[1771770135562,1.07940786,83.879,83.844,0.44766257]
[1771770136058,1.07940786,83.894,83.844,0.44766257]
[1771770136572,1.07940786,83.892,83.852,0.44642698]
[1771770136757,1.07940786,83.892,83.854,0.44642698]
[1771770138170,1.07940786,83.892,83.856,0.44400854]
[1771770139182,1.07940786,83.892,83.853,5.36086188]
[1771770139183,1.07940786,83.892,83.858,0.44281272]
[1771770139707,11.91822951,83.906,83.858,0.44281272]
[1771770139981,1.07940786,83.905,83.864,0.4416312]
[1771770140282,1.07940786,83.905,83.86,0.4416312]
[1771770140283,1.07940786,83.904,83.86,0.4416312]
[1771770140666,1.07940786,83.904,83.859,53.7]
[1771770140977,1.07940786,83.902,83.859,53.7]
[1771770141566,1.07940786,83.893,83.859,53.7]
[1771770142572,1.07940786,83.893,83.86,11.92463629]
[1771770144689,1.07940786,83.891,83.851,0.43707488]
[1771770147588,1.07940786,83.889,83.852,11.92577398]
[1771770148789,1.07940786,83.887,83.85,29.81514609]
[1771770150880,1.07940786,83.887,83.851,0.42956136]
[1771770151682,1.07940786,83.882,83.817,0.42956136]
[1771770152091,1.07940786,83.882,83.827,0.42854276]
[1771770152280,13.52012748,83.936,83.837,1.08494763]
[1771770152481,0.2,83.94,83.853,1.08494763]
[1771770152698,0.2,83.94,83.855,1.08494763]
[1771770152906,29.79240651,83.914,83.855,1.08494763]
[1771770153200,29.79240651,83.914,83.857,1.08494763]
[1771770153201,0.28432314,83.91,83.857,1.08494763]
[1771770154388,1.07940786,83.903,83.857,1.08494763]
[1771770154593,1.07940786,83.903,83.844,29.81717601]
[1771770154594,1.07940786,83.903,83.852,1.08494763]
[1771770155385,1.07940786,83.901,83.854,1.08494763]
[1771770157487,1.07940786,83.899,83.855,11.92534732]
[1771770158210,1.07940786,83.899,83.855,12.98820017]
[1771770159391,1.07940786,83.899,83.856,1.06285285]
[1771770160204,0.28432314,83.911,83.857,11.9250629]
[1771770160205,1.11415273,83.897,83.857,11.9250629]
[1771770160396,1.11415273,83.893,83.85,1.06285285]
[1771770161589,0.28432314,83.901,83.85,1.06285285]
[1771770161590,1.11415273,83.891,83.85,1.06285285]
[1771770162510,1.11415273,83.891,83.852,1.06285285]
[1771770164806,1.11415273,83.889,83.842,1.06285285]
[1771770165911,1.11415273,83.883,83.841,53.66]
[1771770166910,1.11415273,83.881,83.841,53.66]
[1771770167401,1.11415273,83.881,83.843,1.06285285]
[1771770168126,1.11415273,83.881,83.841,53.66]
[1771770169113,1.11415273,83.879,83.841,53.66]
[1771770170223,1.11415273,83.877,83.841,54.72285285]
[1771770170518,1.11415273,83.877,83.841,53.66]
[1771770170717,1.11415273,83.877,83.842,1.06285285]
[1771770172011,1.11415273,83.875,83.842,1.06285285]
[1771770173824,1.11415273,83.875,83.844,1.06285285]
[1771770175125,1.11415273,83.875,83.846,1.06285285]
[1771770175527,11.92264587,83.874,83.846,1.06285285]
[1771770175726,1.11415273,83.873,83.846,1.06285285]
[1771770176428,1.11415273,83.873,83.847,11.92648514]
[1771770176625,1.11415273,83.873,83.848,1.06285285]
[1771770178632,1.11415273,83.871,83.839,1.06285285]
[1771770180431,1.11415273,83.871,83.836,11.92791707]
[1771770180621,1.11415273,83.869,83.836,1.06285285]
[1771770183738,1.11415273,83.867,83.837,11.92790772]
[1771770183934,1.11415273,83.867,83.837,12.99076057]
[1771770184933,1.11415273,83.865,83.838,1.06285285]
[1771770185540,1.11415273,83.865,83.825,1.06285285]
[1771770187431,1.11415273,83.863,83.827,1.06285285]
[1771770189722,1.09308233,83.861,83.829,1.11308961]
[1771770192035,102.7,83.898,83.814,19.82933405]
[1771770192036,0.28432314,83.854,83.814,19.82933405]
[1771770192335,1.09308233,83.855,83.815,11.93103859]
[1771770192642,1.09308233,83.855,83.816,1.11308961]
[1771770193637,1.09308233,83.853,83.818,1.11308961]
[1771770194916,11.92548954,83.854,83.818,1.11308961]
[1771770195321,1.05302621,83.853,83.818,1.11308961]
[1771770196140,1.05302621,83.851,83.818,1.11308961]
[1771770196339,1.05302621,83.851,83.82,1.07336711]
[1771770198239,1.05302621,83.849,83.82,1.07336711]
[1771770199645,1.05302621,83.843,83.814,19.82933405]
[1771770201348,1.05302621,83.841,83.814,19.82933405]
[1771770204338,1.05302621,83.839,83.814,19.82933405]
[1771770205048,1.05302621,83.839,83.797,1.07336711]
[1771770206549,1.05302621,83.837,83.799,1.07336711]
[1771770209757,1.05302621,83.835,83.801,1.07336711]
[1771770210355,11.92805,83.836,83.801,1.07336711]
[1771770211450,1.05302621,83.835,83.801,1.07336711]
[1771770213458,1.05302621,83.833,83.795,1.07336711]
[1771770214345,1.05302621,83.833,83.785,1.07336711]
[1771770215561,1.05302621,83.831,83.786,11.93516816]
[1771770215765,1.05302621,83.829,83.787,1.07336711]
[1771770218754,0.28432314,83.816,83.769,1.07676356]
[1771770219071,41.75215917,83.828,83.769,1.07676356]
[1771770219072,1.09138463,83.803,83.769,1.07676356]
[1771770221259,1.09138463,83.801,83.762,1.07676356]
[1771770223181,11.93317422,83.8,83.763,11.93844537]
[1771770223382,11.93317422,83.8,83.764,1.07676356]
[1771770224878,1.09138463,83.82,83.766,1.07676356]
[1771770226580,11.93046922,83.819,83.767,41.78256353]
[1771770226777,1.09138463,83.818,83.768,1.07676356]
[1771770229363,1.09138463,83.816,83.77,1.07676356]
[1771770229564,11.93014235,83.822,83.772,1.07676356]
[1771770230066,1.09138463,83.821,83.772,1.07676356]
[1771770230363,1.09138463,83.821,83.773,53.72]
[1771770230561,13.02171152,83.82,83.776,1.07676356]
[1771770231982,1.09138463,83.819,83.778,1.07676356]
[1771770233698,1.09138463,83.819,83.78,1.07676356]
[1771770235799,11.93061156,83.818,83.781,11.93588045]
[1771770235978,13.02199619,83.818,83.782,1.07676356]
[1771770236177,1.09138463,83.817,83.782,1.07676356]
[1771770239597,1.09138463,83.817,83.784,1.07676356]
[1771770241192,1.09138463,83.815,83.784,1.07676356]
[1771770242385,1.09138463,83.815,83.786,1.07676356]
[1771770242885,1.09138463,83.813,83.786,1.07676356]
[1771770243197,1.09138463,83.813,83.781,1.07676356]
[1771770243402,1.09138463,83.813,83.78,53.7]
[1771770244999,1.09138463,83.811,83.78,53.7]
[1771770245502,1.09138463,83.811,83.782,1.07676356]
[1771770246504,1.09138463,83.811,83.783,11.93559552]
[1771770246694,1.09138463,83.811,83.784,1.07676356]
[1771770249610,1.09138463,83.811,83.785,11.93531061]
[1771770249810,1.09138463,83.811,83.786,1.00643819]
[1771770251301,1.09138463,83.811,83.788,1.00643819]
[1771770254006,1.09138463,83.811,83.79,1.00643819]
[1771770255600,1.09138463,83.811,83.791,12.92004671]
[1771770256515,1.09138463,83.811,83.792,0.98559075]
[1771770258008,1.09138463,83.811,83.786,0.98559075]
[1771770260122,1.09138463,83.811,83.787,11.93502571]
[1771770260433,1.09138463,83.811,83.788,0.98559075]
[1771770262822,1.09138463,83.811,83.789,11.93474083]
[1771770263026,1.09138463,83.811,83.79,0.98559075]
[1771770267139,1.09138463,83.811,83.792,0.98559075]
[1771770269240,1.02309034,83.819,83.794,0.98559075]
[1771770270122,1.02309034,83.819,83.793,11.93417111]
[1771770272921,1.02309034,83.817,83.794,0.98559075]
[1771770275419,1.02309034,83.817,83.795,0.98559075]
[1771770276141,1.02309034,83.815,83.795,0.98559075]
[1771770277446,11.89763525,83.86,83.782,53.7]
[1771770277447,1.02309034,83.813,83.782,53.7]
[1771770277623,1.02309034,83.813,83.784,0.98559075]
[1771770280155,11.93146566,83.812,83.784,0.98559075]
[1771770280352,1.0429446,83.811,83.784,0.98559075]
[1771770283350,1.0429446,83.809,83.784,0.98559075]
[1771770290063,1.0429446,83.807,83.784,0.98559075]
[1771770290562,1.0429446,83.807,83.786,0.99676874]
[1771770296670,1.0429446,83.807,83.787,11.93502571]
[1771770296867,1.0429446,83.807,83.787,12.93179445]
[1771770299068,1.0429446,83.805,83.782,0.99676874]
[1771770299278,1.0429446,83.805,83.778,0.99676874]
[1771770301448,1.0429446,83.805,83.779,11.93616538]
[1771770301648,1.0429446,83.805,83.779,12.93293412]
[1771770302569,1.0429446,83.805,83.78,0.99676874]
[1771770303766,1.0429446,83.805,83.781,11.93588045]
[1771770304159,1.0429446,83.805,83.781,12.93264919]
[1771770305963,1.0429446,83.805,83.782,0.99676874]
[1771770309179,1.0429446,83.805,83.784,0.98035866]
[1771770319990,1.03597633,83.81,83.784,0.98035866]
[1771770320192,1.03597633,83.833,83.786,1.05589994]
[1771770322897,1.03597633,83.831,83.788,1.05589994]
[1771770324298,1.03597633,83.829,83.79,1.05589994]
[1771770326779,0.2,83.93,83.826,1.05589994]
[1771770326978,11.92378317,83.866,83.826,1.05589994]
[1771770328796,1.03597633,83.865,83.828,1.05589994]
[1771770331193,1.03597633,83.865,83.829,41.75166111]
[1771770331403,1.03597633,83.865,83.83,1.05589994]
[1771770333492,1.03597633,83.865,83.831,11.92876143]
[1771770333698,1.03597633,83.865,83.832,1.05589994]
[1771770334199,11.92406753,83.864,83.832,1.05589994]
[1771770334498,1.03597633,83.863,83.831,11.92876143]
[1771770335002,1.03597633,83.863,83.823,11.92984997]
[1771770335684,1.03597633,83.861,83.812,3.69383402]
[1771770336885,1.03597633,83.861,83.813,1.05589994]
[1771770337691,1.03597633,83.859,83.815,1.05589994]
[1771770341386,0.97440013,83.857,83.817,0.97446778]
[1771770341596,41.73722243,83.858,83.813,0.97446778]
[1771770341597,0.97440013,83.853,83.813,0.97446778]
[1771770341802,0.97440013,83.853,83.814,0.97446778]
[1771770342995,0.97440013,83.853,83.811,11.93147616]
[1771770343385,0.97440013,83.851,83.811,11.93147616]
[1771770345197,0.97440013,83.851,83.812,0.97446778]
[1771770347788,0.97440013,83.849,83.814,0.97446778]
[1771770353604,11.9263429,83.848,83.814,0.97446778]
[1771770353829,0.97440013,83.847,83.814,0.97446778]
[1771770359430,11.92662738,83.846,83.814,0.97446778]
[1771770359628,0.97440013,83.845,83.814,0.97446778]
[1771770362734,0.97440013,83.843,83.801,0.97446778]
[1771770364227,0.97440013,83.841,83.801,12.90743866]
[1771770364435,0.97440013,83.841,83.802,0.97446778]
[1771770367643,59.62472144,83.858,83.795,0.97446778]
[1771770367644,0.97440013,83.833,83.795,0.97446778]
[1771770370645,59.62472144,83.858,83.795,0.97446778]
[1771770370646,1.05567895,83.831,83.795,0.97446778]
[1771770372152,29.82154785,83.832,83.795,1.03334977]
[1771770374043,11.92890373,83.83,83.795,1.03334977]
[1771770374242,1.05567895,83.829,83.795,1.03334977]
[1771770377068,1.03113474,83.827,83.795,1.03334977]
[1771770379165,1.03113474,83.825,83.797,1.0159391]
[1771770380342,1.03113474,83.837,83.797,1.0159391]
[1771770382557,1.03113474,83.835,83.799,1.0159391]
[1771770384868,1.03113474,83.839,83.801,1.0159391]
[1771770387169,1.03113474,83.839,83.803,1.0159391]
[1771770388472,1.03113474,83.839,83.804,11.93260464]
[1771770388763,1.03113474,83.839,83.805,1.0159391]
[1771770391674,1.03113474,83.837,83.807,1.0159391]
[1771770394683,1.03113474,83.837,83.809,1.0159391]
[1771770398072,1.03113474,83.837,83.811,1.0821618]
[1771770400480,1.03113474,83.837,83.813,1.0821618]
[1771770402868,0.69426198,83.837,83.816,1.0821618]
[1771770403075,11.92657123,83.847,83.816,1.0821618]
[1771770404982,1.03677251,83.846,83.818,1.0821618]
[1771770407488,1.03677251,83.844,83.807,1.0821618]
[1771770412189,1.03677251,83.844,83.802,53.7]
[1771770412190,1.03677251,83.842,83.809,1.0821618]
[1771770415199,1.03677251,83.84,83.811,1.0821618]
[1771770418088,1.03677251,83.838,83.813,1.0821618]
[1771770418789,1.03677251,83.87,83.803,1.0821618]
[1771770418992,1.03677251,83.862,83.803,1.0821618]
[1771770419286,1.03677251,83.842,83.803,1.0821618]
[1771770420077,1.03677251,83.84,83.802,11.93276145]
[1771770420684,1.03677251,83.832,83.798,53.7]
[1771770421600,1.03677251,83.832,83.799,1.0821618]
[1771770422105,59.62945708,83.852,83.799,1.0821618]
[1771770422106,1.03677251,83.83,83.799,1.0821618]
[1771770425514,1.03677251,83.828,83.8,11.93317422]
[1771770425803,1.03677251,83.828,83.801,1.0821618]
[1771770426801,11.92933064,83.827,83.801,1.0821618]
[1771770426994,1.03677251,83.826,83.801,1.0821618]
[1771770430897,1.07876903,83.824,83.801,1.0821618]
[1771770432311,11.92961526,83.825,83.803,1.0154608]
[1771770433904,1.07876903,83.825,83.803,1.0154608]
[1771770434614,1.07876903,83.825,83.805,1.04087803]
[1771770435702,1.07876903,83.825,83.789,29.83651734]
[1771770435703,1.06558451,83.84,83.807,1.04087803]
[1771770438520,12.99320769,83.839,83.809,1.04087803]
[1771770439015,1.06558451,83.838,83.809,1.04087803]
[1771770440028,11.92790772,83.837,83.811,1.04087803]
[1771770441619,12.99349223,83.837,83.811,1.04087803]
[1771770442721,1.06558451,83.836,83.813,1.04087803]
[1771770444121,1.06558451,83.862,83.813,1.04087803]
[1771770444418,101.63285476,83.869,83.813,1.04087803]
[1771770444419,1.06558451,83.852,83.813,1.04087803]
[1771770444619,89.42517496,83.869,83.813,1.04087803]
[1771770444620,1.06558451,83.85,83.813,1.04087803]
[1771770447337,1.06558451,83.848,83.813,1.04087803]
[1771770447923,1.06558451,83.842,83.803,1.04087803]
[1771770449527,1.06558451,83.84,83.803,1.04087803]
[1771770450632,1.06558451,83.84,83.805,1.04087803]
[1771770453314,1.06558451,83.838,83.805,1.04087803]
[1771770453629,1.06558451,83.838,83.807,1.04087803]
[1771770456433,1.06558451,83.836,83.807,1.04087803]
[1771770457015,1.06558451,83.836,83.801,11.93289211]
[1771770457335,1.06558451,83.836,83.802,1.04087803]
[1771770458622,1.06567181,83.834,83.802,1.04087803]
[1771770459620,1.06567181,83.832,83.802,1.04087803]
[1771770460838,1.06567181,83.832,83.804,1.0794994]
[1771770462556,1.06567181,83.832,83.779,61.4]
[1771770462557,1.06567181,83.822,83.775,1.0794994]
[1771770462714,0.28432314,83.809,83.764,53.7]
[1771770462919,3.69383402,83.828,83.746,11.06920043]
[1771770462920,0.28432314,83.797,83.76,1e-08]
[1771770463117,1.06567181,83.792,83.76,1e-08]
[1771770464521,1.06567181,83.79,83.76,1e-08]
[1771770465626,1.06567181,83.788,83.76,1.07949941]
[1771770467844,11.93474083,83.789,83.762,1.0794994]
[1771770468434,1.06567181,83.793,83.762,1.0794994]
[1771770468641,11.93431353,83.792,83.762,1.0794994]
[1771770470425,11.93431353,83.792,83.763,11.93844537]
[1771770470742,11.93431353,83.792,83.764,1.0794994]
[1771770472844,1.06567181,83.824,83.766,1.0794994]
[1771770473142,1.06567181,83.822,83.766,1.0794994]
[1771770474255,41.75365343,83.825,83.761,13.01822983]
[1771770474256,0.28432314,83.811,83.761,13.01822983]
[1771770474435,1.06567181,83.802,83.762,1.0794994]
[1771770475357,1.06567181,83.8,83.764,1.0794994]
[1771770479255,1.06567181,83.798,83.764,1.0794994]
[1771770479848,1.06567181,83.798,83.766,1.0794994]
[1771770481251,11.93360144,83.797,83.766,1.0794994]
[1771770481557,1.06567181,83.796,83.766,1.0794994]
[1771770481967,1.06567181,83.796,83.768,1.0794994]
[1771770483649,1.06567181,83.796,83.77,1.0794994]
[1771770483954,1.06567181,83.801,83.77,1.0794994]
[1771770485364,11.93317422,83.8,83.771,11.93730527]
[1771770485542,11.93317422,83.8,83.772,1.0794994]
[1771770485745,1.06567181,83.801,83.772,1.0794994]
[1771770486041,1.06567181,83.813,83.772,1.0794994]
[1771770487460,1.06567181,83.822,83.777,1.0794994]
[1771770488458,12.9500061,83.821,83.777,1.0794994]
[1771770488661,1.01982155,83.833,83.783,1.07833446]
[1771770489760,1.01982155,83.833,83.784,41.77408573]
[1771770489961,102.7,83.855,83.794,1.07833446]
[1771770489962,1.01982155,83.839,83.794,1.07833446]
[1771770490559,1.01982155,83.839,83.795,53.72]
[1771770490759,1.01982155,83.839,83.796,1.07833446]
[1771770492267,1.01982155,83.839,83.798,1.07833446]
[1771770496862,1.01982155,83.839,83.8,1.02732566]
[1771770500166,1.01982155,83.839,83.802,1.02732566]
[1771770504961,1.08038211,83.838,83.804,1.02732566]
[1771770506865,1.08038211,83.838,83.803,11.93274703]
[1771770506866,1.08038211,83.838,83.805,11.93246226]
[1771770507068,1.08038211,83.838,83.806,1.02732566]
[1771770507974,1.08038211,83.836,83.801,53.7]
[1771770508277,1.08038211,83.832,83.801,53.7]
[1771770510664,1.08038211,83.83,83.803,1.02732566]
[1771770513562,1.08038211,83.828,83.804,11.93260464]
[1771770516578,1.08038211,83.828,83.805,1.02732566]
[1771770516779,1.08038211,83.846,83.805,1.02732566]
[1771770520487,11.92676963,83.845,83.806,11.93231988]
[1771770520785,1.07719462,83.844,83.807,1.00425936]
[1771770523185,1.07719462,83.842,83.809,1.00425936]
[1771770526517,1.07719462,83.84,83.811,1.00425936]
[1771770530103,1.07719462,83.85,83.813,1.00425936]
[1771770533804,1.07719462,83.85,83.815,1.00425936]
[1771770533805,1.07719462,83.849,83.815,1.00425936]
[1771770536923,1.07719462,83.849,83.817,1.00425936]
[1771770538229,1.07719462,83.847,83.817,1.00425936]
[1771770541036,11.92662738,83.846,83.817,1.00425936]
[1771770541236,1.07719462,83.845,83.817,1.00425936]
[1771770546841,11.92691188,83.844,83.817,1.00425936]
[1771770547028,1.07719462,83.843,83.817,1.00425936]
[1771770550434,11.92719639,83.842,83.817,1.00425936]
[1771770550642,1.00285092,83.841,83.817,1.00425936]
[1771770552534,1.00285092,83.839,83.817,1.00425936]
[1771770573854,41.73373874,83.865,83.819,1.00820681]
[1771770574254,0.28432314,83.864,83.819,1.00820681]
[1771770576041,1.04480001,83.861,83.821,1.00820681]
[1771770579062,1.08121162,83.859,83.823,0.9984806]
[1771770585167,1.08121162,83.857,83.825,0.9984806]
[1771770587569,1.08121162,83.857,83.827,0.9984806]
[1771770590253,1.08121162,83.857,83.829,0.9984806]
[1771770594480,1.08121162,83.857,83.831,0.9984806]
[1771770595082,11.92520511,83.856,83.831,0.9984806]
[1771770595374,1.08121162,83.855,83.831,0.9984806]
[1771770596760,1.08121162,83.855,83.833,0.9984806]
[1771770598678,1.08121162,83.865,83.834,11.92833456]
[1771770598983,1.08121162,83.88,83.835,0.9984806]
[1771770600479,1.08121162,83.872,83.835,0.9984806]
[1771770601659,41.73075317,83.871,83.835,0.9984806]
[1771770601968,1.08121162,83.87,83.835,0.9984806]
[1771770602674,1.08121162,83.87,83.837,0.9984806]
[1771770603070,1.08121162,83.87,83.813,29.82811714]
[1771770603274,1.08121162,83.862,83.804,0.9984806]
[1771770604290,1.08121162,83.86,83.806,0.9984806]
[1771770606989,1.08121162,83.858,83.81,3.69383402]
[1771770607288,1.08121162,83.858,83.811,0.9984806]
[1771770608195,1.04655336,83.856,83.816,1.03762938]
[1771770611273,1.04655336,83.854,83.818,1.03762938]
[1771770617203,1.04655336,83.854,83.815,3.69383402]
[1771770617204,1.02940915,83.852,83.82,1.09247286]
[1771770621807,1.02940915,83.852,83.822,1.09247286]
[1771770623004,1.02940915,83.852,83.823,11.9298999]
[1771770623206,1.02940915,83.852,83.824,1.09247286]
[1771770627212,1.02940915,83.852,83.825,11.92961526]
[1771770627508,1.02940915,83.852,83.826,1.09247286]
[1771770630511,1.02940915,83.852,83.828,1.09247286]
[1771770634815,1.02940915,83.852,83.83,1.09247286]
[1771770639316,1.09746288,83.86,83.832,1.08390236]
[1771770639518,1.09746288,83.873,83.832,1.08390236]
[1771770647727,1.09746288,83.871,83.834,1.08390236]
[1771770649423,1.09746288,83.871,83.833,11.92847685]
[1771770649424,1.09746288,83.869,83.836,1.08390236]
[1771770650405,1.09746288,83.883,83.836,1.08390236]
[1771770651631,1.09746288,83.881,83.838,1.08390236]
[1771770654439,29.80199554,83.887,83.82,61.4]
[1771770654440,1.09746288,83.879,83.84,1.08390236]
[1771770661237,1.09746288,83.877,83.842,1.08390236]
[1771770663632,1.09746288,83.877,83.844,1.08390236]
[1771770666942,1.09746288,83.877,83.845,11.92676963]
[1771770667144,1.09746288,83.877,83.846,1.08390236]
[1771770667448,1.09746288,83.875,83.846,1.08390236]
[1771770667655,1.09746288,83.889,83.846,1.08390236]
[1771770668642,1.10984536,83.888,83.846,1.08390236]
[1771770672450,1.10984536,83.888,83.845,41.74369371]
[1771770672451,1.10984536,83.888,83.848,1.00873208]
[1771770673154,1.10984536,83.892,83.848,1.00873208]
[1771770673537,1.10984536,83.897,83.848,1.00873208]
[1771770673933,1.03778373,83.894,83.848,1.00873208]
[1771770674634,0.1,83.9,83.859,1.09610778]
[1771770674831,165.6,83.962,83.873,1.09610778]
[1771770675153,12.11340467,83.94,83.884,1.09610778]
[1771770676256,12.11340467,83.94,83.886,1.09610778]
[1771770676755,0.73863995,83.929,83.886,1.09610778]
[1771770678639,0.73863995,83.929,83.888,1.09610778]
[1771770678947,10.9161149,83.934,83.888,1.09610778]
[1771770679154,10.9161149,83.934,83.887,41.72279375]
[1771770679155,10.17680158,83.934,83.892,3.69383402]
[1771770679334,0.2,83.94,83.894,1.09610778]
[1771770679531,0.1,83.95,83.887,101.32678483]
[1771770679532,0.1,83.95,83.903,1.09610778]
[1771770680147,0.73953266,83.948,83.905,1.09610778]
[1771770680467,0.73953266,83.942,83.905,1.09610778]
[1771770680959,0.1,83.95,83.907,1.09610778]
[1771770680960,0.73953266,83.94,83.907,1.09610778]
[1771770681457,0.73953266,83.94,83.906,11.91809882]
[1771770682647,0.73953266,83.94,83.907,1.09610778]
[1771770684555,0.74041186,83.938,83.908,11.91781474]
[1771770684757,0.74041186,83.932,83.896,1.09610778]
[1771770685446,0.74041186,83.932,83.891,11.92022982]
[1771770685649,0.74041186,83.932,83.892,1.09610778]
[1771770686366,0.740839,83.93,83.894,1.09610778]
[1771770687555,0.74103866,83.928,83.896,1.09610778]
[1771770691974,0.74103866,83.928,83.898,1.09610778]
[1771770693473,0.74103866,83.928,83.9,1.09610778]
[1771770696370,0.74277648,83.926,83.902,1.09610778]
[1771770698472,0.74332839,83.931,83.904,1.03682706]
[1771770698666,0.28432314,83.936,83.904,1.03682706]
[1771770698869,0.28432314,83.934,83.904,1.03682706]
[1771770699051,0.74350345,83.933,83.904,1.03682706]
[1771770700575,0.74367855,83.931,83.904,1.03682706]
[1771770700751,0.74367855,83.931,83.899,12.95591355]
[1771770701649,0.74386777,83.929,83.901,12.95563613]
[1771770702067,0.74386777,83.929,83.902,1.03682706]
[1771770702272,0.7440415,83.938,83.902,1.03682706]
[1771770704956,0.7440415,83.938,83.903,11.91852496]
[1771770705271,0.7440415,83.938,83.904,1.03682706]
[1771770706477,0.7440415,83.938,83.905,11.91824086]
[1771770706681,0.7440415,83.938,83.906,1.03682706]
[1771770710086,0.7440415,83.938,83.908,1.03682706]
[1771770711466,0.74544884,83.944,83.908,1.03682706]
[1771770714884,11.9127001,83.945,83.91,1.03682706]
[1771770715265,12.65875064,83.945,83.91,1.03682706]
[1771770715477,0.74605054,83.944,83.91,1.03682706]
[1771770716490,0.74605054,83.944,83.912,1.03682706]
[1771770717969,0.74605054,83.944,83.914,1.03682706]
[1771770720066,0.74605054,83.944,83.916,1.03682706]
[1771770723581,0.74713619,83.942,83.918,1.03682706]
[1771770725489,0.74713619,83.942,83.919,11.91625257]
[1771770725792,0.74713619,83.942,83.92,1.03682706]
[1771770728197,29.77502635,83.963,83.922,1.03124274]
[1771770728198,0.74794302,83.947,83.922,1.03124274]
[1771770731114,0.74829566,83.957,83.924,1.03124274]
[1771770732102,0.74841161,83.963,83.924,1.03124274]
[1771770732306,0.74841161,83.967,83.924,1.03124274]
[1771770733525,1.31877921,83.99,83.929,3.69383402]
[1771770733733,1.31877921,83.99,83.93,0.28432314]
[1771770734735,1.11877921,83.989,83.929,9.33901904]
[1771770736721,1.11877921,83.989,83.931,0.28432314]
[1771770738037,1.11877921,83.989,83.932,41.70042415]
[1771770738230,1.11877921,83.989,83.933,0.28432314]
[1771770739230,1.11877921,83.989,83.935,0.28432314]
[1771770740950,1.11877921,83.989,83.936,0.02207488]
[1771770741358,1.11877921,83.989,83.937,0.02207488]
[1771770743370,1.11877921,83.987,83.937,0.02207488]
[1771770749649,1.11877921,83.986,83.937,0.02207488]
[1771770752344,1.11877921,83.986,83.938,0.04624809]
[1771770752549,1.11877921,83.986,83.939,0.04624809]
[1771770752741,1.11877921,83.986,83.941,0.04624809]
[1771770753247,1.11877921,83.986,83.943,0.04829484]
[1771770753640,1.11877921,83.986,83.945,0.04829484]
[1771770754060,1.11877921,83.986,83.945,17.86588938]
[1771770754233,1.11877921,83.986,83.947,0.05032007]
[1771770755858,1.11877921,83.986,83.948,0.05233341]
[1771770760555,1.11877921,83.986,83.948,0.063878]
[1771770764353,1.13747167,83.984,83.933,0.07113391]
[1771770767664,1.13747167,83.982,83.933,0.07113391]
[1771770769367,1.13747167,83.98,83.933,0.07113391]
[1771770770461,1.13747167,83.976,83.931,11.91454885]
[1771770770663,1.13747167,83.966,83.931,11.91454885]
[1771770774096,1.13747167,83.964,83.926,0.08141873]